bitfinex/quotes_SOLUSD_20251118
["timestamp","ask_amount","ask_price","bid_price","bid_amount"]
[1763435003764,0.69,132.4,132.38,9.78882769]
[1763435003978,32.27152113,132.4,132.35,9.78882769]
[1763435004368,18.81096,132.4,132.36,9.78882769]
[1763435004569,14.15056113,132.39,132.27,37.99651625]
[1763435004887,14.15056113,132.39,132.35,9.78882769]
[1763435005084,18.12096,132.36,132.35,9.78882769]
[1763435005274,18.12096,132.36,132.33,9.78882769]
[1763435005473,0.69,132.38,132.26,37.35583588]
[1763435005664,18.12096,132.34,132.31,13.46056113]
[1763435005986,18.12096,132.34,132.32,9.78882769]
[1763435006183,13.46056113,132.39,132.34,9.78882769]
[1763435006494,31.58152113,132.35,132.26,37.35583588]
[1763435006710,13.46056113,132.33,132.26,37.35583588]
[1763435006868,13.46056113,132.33,132.27,51.45707738]
[1763435007067,13.46056113,132.33,132.29,9.78882769]
[1763435007284,15.46056113,132.43,132.29,9.78882769]
[1763435007285,18.12096,132.4,132.31,9.78882769]
[1763435007489,14.15056113,132.36,132.31,23.24938882]
[1763435007665,13.46056113,132.35,132.3,9.78882769]
[1763435007865,13.46056113,132.34,132.3,9.78882769]
[1763435008274,18.12096,132.35,132.3,23.24938882]
[1763435008790,37.76114512,132.48,132.34,9.78882769]
[1763435008990,37.76114512,132.48,132.25,51.68088914]
[1763435008991,0.69,132.42,132.37,9.78882769]
[1763435009195,11.35926322,132.51,132.37,23.24938882]
[1763435009196,13.46056113,132.43,132.37,23.24938882]
[1763435009410,0.69,132.5,132.42,23.24938882]
[1763435009592,13.46056113,132.48,132.43,13.46056113]
[1763435009773,13.46056113,132.48,132.44,9.78882769]
[1763435009968,14.15056113,132.48,132.43,9.78882769]
[1763435010271,0.69,132.5,132.46,9.78882769]
[1763435010582,31.58152113,132.49,132.45,9.78882769]
[1763435010981,18.81096,132.49,132.44,23.24938882]
[1763435011184,0.69,132.49,132.37,4.8]
[1763435011489,13.46056113,132.49,132.45,9.78882769]
[1763435011882,0.69,132.5,132.45,9.78882769]
[1763435012078,18.12096,132.49,132.46,9.78882769]
[1763435012284,31.58152113,132.49,132.46,9.78882769]
[1763435012500,13.46056113,132.48,132.45,9.78882769]
[1763435012897,13.46056113,132.48,132.44,9.78882769]
[1763435013196,31.58152113,132.49,132.44,23.24938882]
[1763435013495,13.66056113,132.51,132.46,23.24938882]
[1763435013697,0.2,132.51,132.48,9.78882769]
[1763435013992,18.32096,132.51,132.48,9.78882769]
[1763435014169,13.46056113,132.5,132.38,14.58882769]
[1763435014373,0.89,132.51,132.49,13.46056113]
[1763435014374,0.2,132.51,132.49,13.46056113]
[1763435014700,0.89,132.56,132.5,23.24938882]
[1763435014890,14.35056113,132.56,132.52,9.78882769]
[1763435015090,0.89,132.56,132.52,9.78882769]
[1763435015396,0.89,132.56,132.51,13.46056113]
[1763435015397,14.35056113,132.56,132.51,23.24938882]
[1763435015586,0.89,132.56,132.51,23.24938882]
[1763435015771,18.12096,132.55,132.5,13.46056113]
[1763435015974,0.2,132.56,132.51,23.24938882]
[1763435016170,13.66056113,132.56,132.51,13.46056113]
[1763435016401,32.47152113,132.56,132.52,9.78882769]
[1763435016600,18.32096,132.56,132.52,9.78882769]
[1763435016784,31.78152113,132.56,132.52,9.78882769]
[1763435017105,31.78152113,132.56,132.54,23.24938882]
[1763435017106,0.2,132.56,132.54,23.24938882]
[1763435017486,0.2,132.56,132.47,9.78882769]
[1763435017693,0.2,132.56,132.47,10.54371558]
[1763435018699,0.2,132.56,132.47,9.78882769]
[1763435018899,0.2,132.56,132.53,9.78882769]
[1763435019285,0.2,132.56,132.53,21.43344623]
[1763435019606,0.2,132.56,132.55,9.78882769]
[1763435019801,0.2,132.56,132.49,9.78882769]
[1763435020104,0.2,132.56,132.55,9.78882769]
[1763435020282,0.2,132.56,132.53,9.78882769]
[1763435020485,0.2,132.56,132.53,21.43344623]
[1763435021196,0.2,132.58,132.55,11.64461854]
[1763435021396,0.2,132.58,132.56,9.78882769]
[1763435021792,0.2,132.58,132.57,9.78882769]
[1763435022502,0.2,132.58,132.56,9.78882769]
[1763435022810,0.2,132.58,132.55,11.64461854]
[1763435022811,0.2,132.58,132.55,9.78882769]
[1763435023102,11.64461854,132.57,132.53,9.78882769]
[1763435023306,11.64461854,132.55,132.48,9.78882769]
[1763435023507,11.64461854,132.56,132.52,9.78882769]
[1763435023688,0.88,132.58,132.52,9.78882769]
[1763435023884,11.64461854,132.55,132.51,9.78882769]
[1763435024303,0.68,132.57,132.52,9.78882769]
[1763435024498,11.64461854,132.56,132.52,9.78882769]
[1763435024691,18.80096,132.57,132.51,21.43344623]
[1763435025007,11.64461854,132.56,132.51,21.43344623]
[1763435025214,0.2,132.58,132.53,11.64461854]
[1763435025509,0.2,132.58,132.57,9.78882769]
[1763435025678,0.2,132.61,132.58,9.78882769]
[1763435025881,0.2,132.61,132.6,21.43344623]
[1763435026704,0.2,132.61,132.6,9.78882769]
[1763435026888,0.2,132.61,132.6,21.43344623]
[1763435027319,11.84461854,132.7,132.61,9.78882769]
[1763435027524,0.2,132.7,132.68,11.64461854]
[1763435027696,0.2,132.7,132.58,33.55992914]
[1763435027904,0.68,132.69,132.6,9.78882769]
[1763435028103,0.2,132.7,132.59,27.90978769]
[1763435028313,0.2,132.7,132.69,21.43344623]
[1763435028924,0.68,132.77,132.7,9.78882769]
[1763435029233,11.64461854,132.79,132.75,9.78882769]
[1763435029404,18.80096,132.8,132.75,21.43344623]
[1763435029604,11.64461854,132.83,132.74,9.78882769]
[1763435029913,2.0,132.93,132.73,4.78]
[1763435029914,0.68,132.91,132.8,9.78882769]
[1763435030097,11.64461854,132.84,132.8,9.78882769]
[1763435030294,0.68,132.92,132.79,9.78882769]
[1763435030506,11.64461854,132.83,132.79,9.78882769]
[1763435030907,18.12096,132.77,132.69,33.55992914]
[1763435031201,11.64461854,132.75,132.7,11.64461854]
[1763435031402,18.12096,132.76,132.7,11.64461854]
[1763435031658,11.64461854,132.74,132.69,45.20454768]
[1763435031933,18.80096,132.76,132.69,45.20454768]
[1763435032108,11.64461854,132.73,132.69,33.55992914]
[1763435032305,0.68,132.72,132.69,33.55992914]
[1763435032535,11.64461854,132.71,132.66,16.42461854]
[1763435032826,11.64461854,132.8,132.59,56.32992914]
[1763435032827,0.68,132.73,132.68,11.64461854]
[1763435033030,11.64461854,132.71,132.69,9.78882769]
[1763435033325,11.64461854,132.7,132.59,51.68088914]
[1763435033524,11.64461854,132.68,132.6,4.76]
[1763435033728,11.64461854,132.67,132.62,11.64461854]
[1763435034037,11.64461854,132.68,132.64,9.78882769]
[1763435034226,11.64461854,132.66,132.64,9.78882769]
[1763435034424,11.64461854,132.65,132.6,11.64461854]
[1763435034734,11.64461854,132.64,132.59,33.55992914]
[1763435034937,11.64461854,132.63,132.6,9.78882769]
[1763435035117,11.64461854,132.61,132.59,33.55992914]
[1763435035433,11.64461854,132.6,132.56,37.02516246]
[1763435035626,18.12096,132.63,132.56,37.02516246]
[1763435035832,0.68,132.63,132.56,48.669781]
[1763435036146,18.12096,132.7,132.52,37.2700367]
[1763435036449,9.78882769,132.79,132.63,9.78882769]
[1763435036450,11.64461854,132.67,132.63,9.78882769]
[1763435036629,0.68,132.66,132.63,9.78882769]
[1763435036931,18.12096,132.67,132.62,21.43344623]
[1763435037233,18.12096,132.67,132.58,37.95749]
[1763435037234,0.68,132.72,132.64,21.43344623]
[1763435037410,12.32461854,132.72,132.67,21.43344623]
[1763435037610,0.68,132.74,132.69,9.78882769]
[1763435037811,0.68,132.74,132.7,9.78882769]
[1763435037812,12.32461854,132.74,132.7,9.78882769]
[1763435038012,11.64461854,132.74,132.7,9.78882769]
[1763435038220,12.32461854,132.74,132.7,9.78882769]
[1763435038422,0.68,132.74,132.7,9.78882769]
[1763435038617,11.64461854,132.71,132.62,9.78882769]
[1763435038820,11.64461854,132.68,132.64,9.78882769]
[1763435039610,0.68,132.7,132.65,9.78882769]
[1763435039813,11.64461854,132.69,132.65,9.78882769]
[1763435040044,2.0,132.82,132.67,9.78882769]
[1763435040251,0.68,132.73,132.67,9.78882769]
[1763435040456,11.64461854,132.68,132.62,4.76]
[1763435040626,18.12096,132.72,132.67,9.78882769]
[1763435040823,29.76557854,132.68,132.67,9.78882769]
[1763435041025,0.68,132.71,132.61,48.67379135]
[1763435041249,29.76557854,132.7,132.61,37.02917281]
[1763435041549,0.68,132.71,132.65,21.43344623]
[1763435041914,11.64461854,132.69,132.65,9.78882769]
[1763435042119,0.68,132.71,132.61,37.02917281]
[1763435042351,18.80096,132.7,132.61,37.02917281]
[1763435042521,11.64461854,132.69,132.62,4.76]
[1763435042716,9.97070384,132.79,132.64,9.78882769]
[1763435042926,9.97070384,132.79,132.69,11.64461854]
[1763435042927,19.12996706,132.79,132.69,11.64461854]
[1763435043129,45.20454768,132.96,132.74,21.43344623]
[1763435043130,0.68,132.82,132.74,21.43344623]
[1763435043443,0.68,132.92,132.79,9.78882769]
[1763435043652,11.64461854,132.86,132.81,21.43344623]
[1763435043836,0.68,132.91,132.81,21.43344623]
[1763435044041,11.64461854,132.85,132.81,9.78882769]
[1763435044364,11.64461854,132.82,132.78,9.78882769]
[1763435044829,12.32461854,132.82,132.78,9.78882769]
[1763435045169,11.64461854,132.79,132.73,9.78882769]
[1763435045328,11.64461854,132.78,132.73,21.43344623]
[1763435045529,0.68,132.8,132.73,9.78882769]
[1763435045753,18.12096,132.79,132.74,21.43344623]
[1763435045940,40.52782779,132.91,132.77,21.43344623]
[1763435045941,18.12096,132.81,132.77,21.43344623]
[1763435046136,0.68,132.9,132.77,9.78882769]
[1763435046333,0.68,132.89,132.79,9.78882769]
[1763435046854,11.64461854,132.81,132.77,9.78882769]
[1763435047172,11.64461854,132.81,132.76,21.43344623]
[1763435047457,11.64461854,132.78,132.71,33.55992914]
[1763435047664,29.76557854,132.82,132.77,11.64461854]
[1763435047842,18.12096,132.82,132.78,9.78882769]
[1763435048046,12.32461854,132.82,132.78,9.78882769]
[1763435048266,0.68,132.81,132.78,9.78882769]
[1763435048468,11.64461854,132.8,132.75,11.64461854]
[1763435048639,11.64461854,132.8,132.76,9.78882769]
[1763435048954,11.64461854,132.77,132.72,11.64461854]
[1763435049153,11.64461854,132.77,132.71,33.55992914]
[1763435049356,0.68,132.79,132.73,11.64461854]
[1763435049357,11.64461854,132.78,132.73,11.64461854]
[1763435049666,11.64461854,132.74,132.67,37.49666394]
[1763435049973,11.64461854,132.71,132.64,37.29349547]
[1763435050146,11.64461854,132.7,132.64,37.29349547]
[1763435050338,11.64461854,132.71,132.67,37.49666394]
[1763435050538,11.64461854,132.72,132.67,49.14128248]
[1763435050772,11.64461854,132.72,132.68,47.43324807]
[1763435050977,18.80096,132.77,132.7,9.78882769]
[1763435051138,18.80096,132.77,132.71,21.43344623]
[1763435051338,18.80096,132.77,132.74,9.78882769]
[1763435051339,18.12096,132.75,132.74,9.78882769]
[1763435051534,0.68,132.81,132.74,21.43344623]
[1763435051858,0.68,132.81,132.69,4.76]
[1763435051859,11.64461854,132.82,132.78,9.78882769]
[1763435052058,18.12096,132.79,132.74,11.64461854]
[1763435052247,11.64461854,132.76,132.75,9.78882769]
[1763435052453,11.64461854,132.77,132.72,9.78882769]
[1763435052766,0.72,132.78,132.75,9.78882769]
[1763435052965,12.36461854,132.78,132.75,9.78882769]
[1763435053162,12.36461854,132.78,132.67,18.12096]
[1763435053163,11.64461854,132.77,132.74,9.78882769]
[1763435053365,0.72,132.76,132.74,9.78882769]
[1763435053568,11.64461854,132.75,132.73,55.35669717]
[1763435053770,11.64461854,132.74,132.73,17.40096]
[1763435053984,2.0,132.83,132.69,9.78882769]
[1763435054145,2.0,132.82,132.74,0.72]
[1763435054347,11.64461854,132.75,132.74,0.72]
[1763435054542,11.64461854,132.75,132.69,9.78882769]
[1763435054761,0.55643052,132.81,132.69,9.78882769]
[1763435054949,0.55643052,132.81,132.69,21.43344623]
[1763435055165,11.64461854,132.74,132.69,21.43344623]
[1763435055375,11.64461854,132.74,132.69,9.78882769]
[1763435055542,0.55643052,132.81,132.63,33.55992914]
[1763435055543,11.64461854,132.7,132.63,33.55992914]
[1763435055744,18.12096,132.68,132.63,33.55992914]
[1763435056043,18.12096,132.68,132.66,9.78882769]
[1763435056475,11.29070384,132.79,132.66,9.78882769]
[1763435056476,0.72,132.7,132.66,9.78882769]
[1763435056643,11.64461854,132.69,132.65,9.78882769]
[1763435056844,11.64461854,132.69,132.64,9.78882769]
[1763435057044,29.76557854,132.7,132.66,9.78882769]
[1763435057246,18.67739052,132.69,132.66,21.43344623]
[1763435057470,0.55643052,132.69,132.68,9.78882769]
[1763435057660,12.36461854,132.72,132.69,9.78882769]
[1763435057879,11.64461854,132.71,132.69,9.78882769]
[1763435058052,12.36461854,132.72,132.67,21.43344623]
[1763435058254,12.36461854,132.72,132.67,9.78882769]
[1763435058461,12.36461854,132.71,132.68,9.78882769]
[1763435058663,11.64461854,132.7,132.66,9.78882769]
[1763435058969,12.30461854,132.71,132.66,9.78882769]
[1763435059150,12.30461854,132.71,132.66,47.72328321]
[1763435059346,0.66,132.7,132.66,47.72328321]
[1763435059545,18.78096,132.71,132.66,60.07790175]
[1763435059869,18.12096,132.71,132.68,47.43324807]
[1763435060168,18.12096,132.69,132.68,47.43324807]
[1763435060669,18.78096,132.69,132.68,47.43324807]
[1763435060872,11.64461854,132.7,132.69,55.97846303]
[1763435061172,163.5,132.77,132.7,9.78882769]
[1763435061346,11.64461854,132.71,132.7,47.10913473]
[1763435061748,11.64461854,132.71,132.7,46.30913473]
[1763435062071,0.84431077,132.76,132.53,22.69718176]
[1763435062072,2.0,132.74,132.73,2.0]
[1763435062245,2.0,132.74,132.6,37.6373512]
[1763435062246,11.64461854,132.74,132.6,37.6373512]
[1763435062445,8.71824415,132.65,132.59,12.35461854]
[1763435062646,11.64461854,132.65,132.59,12.35461854]
[1763435062872,7.47754535,132.64,132.59,8.18754535]
[1763435063061,18.12096,132.65,132.56,37.73516246]
[1763435063266,18.12096,132.63,132.57,38.6887703]
[1763435063461,18.12096,132.63,132.59,7.47754535]
[1763435063776,0.84431077,132.62,132.59,9.78882769]
[1763435063972,0.84431077,132.62,132.61,9.78882769]
[1763435063973,18.96527077,132.62,132.61,9.78882769]
[1763435064161,0.84431077,132.62,132.61,9.78882769]
[1763435064369,8.32185612,132.62,132.61,9.78882769]
[1763435064548,8.32185612,132.62,132.57,8.18754535]
[1763435064549,0.84431077,132.62,132.58,45.43503535]
[1763435064752,0.84431077,132.62,132.59,9.78882769]
[1763435064974,7.47754535,132.67,132.61,17.26637304]
[1763435065266,475.9,132.73,132.64,9.78882769]
[1763435065469,18.12096,132.66,132.64,9.78882769]
[1763435065845,7.47754535,132.67,132.63,9.78882769]
[1763435066048,7.47754535,132.65,132.63,9.78882769]
[1763435066469,163.5,132.71,132.62,9.78882769]
[1763435066656,2.0,132.72,132.62,9.78882769]
[1763435066657,7.47754535,132.64,132.62,9.78882769]
[1763435067161,7.47754535,132.63,132.62,9.78882769]
[1763435067376,163.5,132.7,132.62,9.78882769]
[1763435067552,9.15926322,132.75,132.64,9.78882769]
[1763435067879,7.47754535,132.71,132.66,17.26637304]
[1763435068061,7.47754535,132.71,132.66,9.78882769]
[1763435068258,7.47754535,132.68,132.65,9.78882769]
[1763435068466,7.47754535,132.68,132.63,37.38191489]
[1763435068671,7.47754535,132.68,132.62,0.71]
[1763435068672,7.47754535,132.67,132.64,47.08232316]
[1763435068970,18.12096,132.71,132.64,54.55986851]
[1763435069188,18.12096,132.71,132.67,9.78882769]
[1763435069377,163.5,132.77,132.67,17.26637304]
[1763435069566,7.47754535,132.73,132.69,9.78882769]
[1763435069751,18.12096,132.7,132.69,9.78882769]
[1763435070076,18.12096,132.68,132.67,47.28549163]
[1763435070467,25.59850535,132.7,132.68,9.78882769]
[1763435070677,7.47754535,132.69,132.68,47.57635752]
[1763435070871,18.12096,132.66,132.61,37.01954897]
[1763435071171,18.12096,132.64,132.62,47.069221]
[1763435071376,163.5,132.73,132.62,47.069221]
[1763435071560,7.47754535,132.68,132.62,55.25676635]
[1763435071761,7.47754535,132.68,132.62,47.779221]
[1763435072080,25.59850535,132.68,132.64,9.78882769]
[1763435072277,18.12096,132.68,132.64,17.26637304]
[1763435072488,18.12096,132.68,132.66,9.78882769]
[1763435072984,18.12096,132.68,132.66,10.49882769]
[1763435073185,25.59850535,132.68,132.66,9.78882769]
[1763435073370,25.59850535,132.68,132.66,43.76248184]
[1763435073371,7.47754535,132.67,132.66,43.76248184]
[1763435073570,18.12096,132.68,132.66,43.76248184]
[1763435073778,25.59850535,132.68,132.66,43.76248184]
[1763435073973,0.66,132.78,132.67,45.48378787]
[1763435074179,7.47754535,132.74,132.67,38.00624252]
[1763435074376,7.47754535,132.73,132.67,38.00624252]
[1763435074590,7.47754535,132.73,132.68,7.47754535]
[1763435074763,7.47754535,132.71,132.67,37.29624252]
[1763435075089,7.47754535,132.69,132.64,0.71]
[1763435075384,7.47754535,132.69,132.64,8.18754535]
[1763435075761,0.66,132.71,132.66,9.78882769]
[1763435075762,7.47754535,132.7,132.66,9.78882769]
[1763435076065,0.66,132.71,132.65,7.47754535]
[1763435076267,0.66,132.71,132.66,17.26637304]
[1763435076472,0.66,132.73,132.68,9.78882769]
[1763435076663,165.5,132.8,132.7,9.78882769]
[1763435076664,7.47754535,132.74,132.7,9.78882769]
[1763435076973,7.47754535,132.74,132.69,7.47754535]
[1763435076974,7.47754535,132.76,132.72,9.78882769]
[1763435077177,7.47754535,132.77,132.72,9.78882769]
[1763435077386,0.2,132.85,132.74,9.78882769]
[1763435077586,7.47754535,132.77,132.73,9.78882769]
[1763435077886,7.47754535,132.75,132.7,8.18754535]
[1763435078057,18.12096,132.76,132.69,17.26637304]
[1763435078264,18.12096,132.76,132.63,60.25471965]
[1763435078265,7.47754535,132.7,132.64,6.15338751]
[1763435078485,7.47754535,132.66,132.6,43.36569469]
[1763435078785,11.56715693,132.67,132.63,9.78882769]
[1763435079360,29.68811693,132.67,132.63,10.49882769]
[1763435079590,11.56715693,132.66,132.62,9.78882769]
[1763435079790,11.56715693,132.66,132.62,10.49882769]
[1763435080363,11.56715693,132.65,132.61,9.78882769]
[1763435080590,29.68811693,132.64,132.61,9.78882769]
[1763435081004,11.56715693,132.65,132.61,9.78882769]
[1763435081170,18.12096,132.65,132.61,22.06598462]
[1763435081373,18.12096,132.65,132.61,10.49882769]
[1763435081677,29.68811693,132.65,132.61,10.49882769]
[1763435082103,0.69,132.64,132.6,9.78882769]
[1763435082414,18.12096,132.59,132.54,37.94854856]
[1763435082592,0.69,132.64,132.56,37.01952103]
[1763435082903,11.56715693,132.6,132.57,9.78882769]
[1763435083272,11.56715693,132.61,132.57,47.32775005]
[1763435083473,13.56715693,132.7,132.57,9.78882769]
[1763435083474,0.69,132.63,132.57,9.78882769]
[1763435083775,2.69,132.69,132.54,37.94854856]
[1763435083973,11.56715693,132.59,132.55,9.78882769]
[1763435084223,2.0,132.69,132.56,37.01952103]
[1763435084365,6.72065891,132.59,132.57,9.78882769]
[1763435084971,11.56715693,132.7,132.55,10.50882769]
[1763435085200,11.56715693,132.7,132.57,9.78882769]
[1763435085201,11.56715693,132.6,132.57,9.78882769]
[1763435085373,2.0,132.72,132.59,9.78882769]
[1763435085592,11.56715693,132.64,132.6,9.78882769]
[1763435085786,11.56715693,132.64,132.56,37.01952103]
[1763435085787,18.12096,132.64,132.56,37.01952103]
[1763435085966,13.56715693,132.7,132.57,9.78882769]
[1763435086172,11.56715693,132.58,132.55,37.09846487]
[1763435086371,11.56715693,132.58,132.52,11.56715693]
[1763435086372,18.12096,132.58,132.52,37.12059206]
[1763435086682,11.56715693,132.56,132.53,0.72]
[1763435087097,11.56715693,132.56,132.54,9.78882769]
[1763435087600,11.56715693,132.55,132.51,9.88882769]
[1763435087772,11.56715693,132.52,132.48,37.11137491]
[1763435087976,0.65,132.54,132.47,0.1]
[1763435087977,18.12096,132.48,132.47,0.1]
[1763435088190,11.56715693,132.49,132.47,0.1]
[1763435088499,11.56715693,132.49,132.48,0.72]
[1763435088500,18.12096,132.49,132.48,0.72]
[1763435088701,18.12096,132.48,132.47,0.1]
[1763435088904,18.12096,132.48,132.47,10.60882769]
[1763435089276,18.12096,132.49,132.48,9.78882769]
[1763435089471,18.12096,132.49,132.47,0.82]
[1763435089711,0.65,132.58,132.49,9.78882769]
[1763435090008,18.12096,132.53,132.49,9.78882769]
[1763435090204,0.65,132.58,132.51,9.78882769]
[1763435090379,18.12096,132.52,132.51,9.78882769]
[1763435090787,18.12096,132.52,132.51,0.72]
[1763435091074,13.37572887,132.55,132.51,0.72]
[1763435091278,13.37572887,132.56,132.52,9.78882769]
[1763435091507,13.37572887,132.55,132.52,9.78882769]
[1763435091808,18.12096,132.55,132.52,9.78882769]
[1763435092008,18.12096,132.55,132.52,0.72]
[1763435092407,31.49668887,132.55,132.52,0.72]
[1763435092600,18.12096,132.55,132.52,0.72]
[1763435093210,18.12096,132.55,132.53,9.78882769]
[1763435093580,18.12096,132.55,132.54,10.50882769]
[1763435093783,18.12096,132.55,132.54,9.78882769]
[1763435094010,18.12096,132.55,132.54,10.50882769]
[1763435094810,0.65,132.63,132.55,9.78882769]
[1763435094996,0.65,132.67,132.55,23.88455656]
[1763435095186,13.37572887,132.61,132.57,9.78882769]
[1763435095391,13.37572887,132.61,132.57,0.72]
[1763435095601,18.12096,132.59,132.57,0.72]
[1763435096101,18.12096,132.6,132.57,0.72]
[1763435096294,18.12096,132.6,132.56,9.78882769]
[1763435096295,13.37572887,132.58,132.56,9.78882769]
[1763435096482,13.37572887,132.58,132.51,6.15338751]
[1763435096483,13.37572887,132.58,132.57,9.78882769]
[1763435096990,18.12096,132.59,132.58,9.78882769]
[1763435097615,31.49668887,132.59,132.57,0.72]
[1763435098013,18.12096,132.59,132.57,0.72]
[1763435098218,13.37572887,132.58,132.49,6.15338751]
[1763435098393,31.49668887,132.55,132.52,9.78882769]
[1763435098797,31.49668887,132.55,132.52,0.72]
[1763435099491,18.12096,132.55,132.53,9.78882769]
[1763435099901,18.12096,132.55,132.53,10.50882769]
[1763435100192,0.65,132.62,132.55,9.78882769]
[1763435100393,13.37572887,132.56,132.5,6.87338751]
[1763435100617,18.12096,132.55,132.5,9.78882769]
[1763435100788,18.12096,132.52,132.5,9.78882769]
[1763435100990,13.37572887,132.51,132.47,9.88882769]
[1763435101217,0.65,132.58,132.49,9.78882769]
[1763435101415,18.12096,132.59,132.51,9.78882769]
[1763435101592,18.12096,132.55,132.51,9.78882769]
[1763435101791,18.12096,132.54,132.53,9.78882769]
[1763435102097,18.12096,132.55,132.51,10.50882769]
[1763435102499,13.37572887,132.58,132.53,9.78882769]
[1763435102700,0.65,132.67,132.55,23.16455656]
[1763435102933,13.37572887,132.62,132.57,9.78882769]
[1763435103144,0.65,132.67,132.57,23.16455656]
[1763435103345,13.37572887,132.62,132.59,9.78882769]
[1763435103565,0.65,132.7,132.59,9.78882769]
[1763435103717,0.65,132.72,132.62,23.16455656]
[1763435104052,0.65,132.72,132.64,9.78882769]
[1763435104053,13.37572887,132.67,132.64,9.78882769]
[1763435104252,13.37572887,132.65,132.59,6.15338751]
[1763435104556,25.07414813,132.71,132.58,0.72]
[1763435104557,13.37572887,132.66,132.61,9.78882769]
[1763435104712,2.0,132.74,132.63,9.78882769]
[1763435104713,13.37572887,132.65,132.63,9.78882769]
[1763435104912,0.65,132.7,132.63,9.78882769]
[1763435105114,13.37572887,132.71,132.65,23.16455656]
[1763435105345,13.37572887,132.69,132.65,9.78882769]
[1763435105556,13.37572887,132.7,132.67,9.78882769]
[1763435105846,13.37572887,132.7,132.69,9.78882769]
[1763435106237,13.37572887,132.7,132.65,10.50882769]
[1763435106433,18.12096,132.69,132.65,10.50882769]
[1763435106627,0.65,132.8,132.68,23.16455656]
[1763435106826,13.37572887,132.74,132.7,9.78882769]
[1763435107138,18.12096,132.73,132.7,9.78882769]
[1763435107332,18.12096,132.72,132.71,10.50882769]
[1763435107760,13.37572887,132.73,132.72,9.78882769]
[1763435107964,0.64,132.83,132.72,10.50882769]
[1763435108170,13.37572887,132.77,132.73,10.50882769]
[1763435108373,18.12096,132.82,132.73,10.50882769]
[1763435108651,13.37572887,132.78,132.75,9.78882769]
[1763435108846,31.49668887,132.78,132.75,9.78882769]
[1763435109174,0.2,132.85,132.77,23.16455656]
[1763435109324,13.37572887,132.84,132.8,9.78882769]
[1763435109532,18.12096,132.81,132.8,10.50882769]
[1763435109733,13.37572887,132.82,132.78,9.78882769]
[1763435110041,13.37572887,132.82,132.75,14.52882769]
[1763435110042,13.57572887,132.85,132.79,23.88455656]
[1763435110348,0.64,132.95,132.84,23.16455656]
[1763435110554,13.37572887,132.95,132.91,9.78882769]
[1763435110743,0.2,132.96,132.84,4.74]
[1763435110744,0.2,132.96,132.93,23.16455656]
[1763435110947,0.2,132.96,132.93,9.78882769]
[1763435110948,18.12096,132.95,132.93,9.78882769]
[1763435111358,18.12096,132.95,132.94,9.78882769]
[1763435111526,0.2,132.96,132.94,9.78882769]
[1763435111728,13.37572887,132.95,132.94,9.78882769]
[1763435111933,18.12096,132.92,132.89,9.78882769]
[1763435112239,13.37572887,132.92,132.89,9.78882769]
[1763435112446,0.2,132.96,132.91,9.78882769]
[1763435112655,13.37572887,132.95,132.91,9.78882769]
[1763435112955,0.2,132.96,132.92,10.48882769]
[1763435113138,0.2,132.96,132.93,23.16455656]
[1763435113459,0.2,132.97,132.95,23.16455656]
[1763435113630,0.65,133.07,132.97,9.78882769]
[1763435113831,13.37572887,133.03,132.97,23.16455656]
[1763435114032,18.12096,133.0,132.97,10.48882769]
[1763435114231,13.57572887,132.98,132.93,0.7]
[1763435114545,13.57572887,132.98,132.94,9.78882769]
[1763435115055,13.57572887,132.98,132.96,9.78882769]
[1763435115255,18.32096,132.98,132.96,9.78882769]
[1763435115454,0.2,132.98,132.95,9.78882769]
[1763435115655,0.2,132.98,132.96,23.16455656]
[1763435115858,0.2,132.98,132.97,9.78882769]
[1763435116239,2.0,133.09,132.97,9.78882769]
[1763435116240,0.65,133.07,132.98,9.78882769]
[1763435116440,0.65,133.07,132.98,10.48882769]
[1763435116642,13.37572887,133.01,132.98,10.48882769]
[1763435116849,18.12096,133.02,132.99,10.48882769]
[1763435117063,13.37572887,133.03,132.99,10.48882769]
[1763435117234,0.65,133.07,133.01,9.78882769]
[1763435117441,31.49668887,133.03,133.01,9.78882769]
[1763435117635,0.2,133.12,133.03,9.78882769]
[1763435117636,0.65,133.11,133.03,9.78882769]
[1763435117848,13.37572887,133.06,133.03,9.78882769]
[1763435118063,13.37572887,133.06,132.98,4.72]
[1763435118064,0.2,133.12,133.05,9.78882769]
[1763435118239,13.37572887,133.06,133.05,9.78882769]
[1763435118454,13.37572887,133.06,133.02,9.78882769]
[1763435118645,0.67,133.1,133.02,23.16455656]